fUSD/lending_fUSD_20251024
["ID","MTS","AMOUNT","RATE_DAILY","PERIOD"]
[392279786,1761303032183,-153.0,0.00032877,30]
[392279787,1761303032194,-153.0,0.00032877,30]
[392279788,1761303032204,-153.0,0.00032877,30]
[392279789,1761303032213,-153.0,0.00032877,30]
[392279790,1761303032223,-153.0,0.00032877,30]
[392279791,1761303032233,-153.0,0.00032877,30]
[392279792,1761303032243,-153.0,0.00032877,30]
[392279793,1761303032252,-153.0,0.00032877,30]
[392279794,1761303032263,-153.0,0.00032877,30]
[392279795,1761303032273,-153.0,0.00032877,30]
[392279796,1761303032283,-153.0,0.00032877,30]
[392279797,1761303032293,-153.0,0.00032877,30]
[392279798,1761303032303,-153.0,0.00032877,30]
[392279799,1761303032313,-153.0,0.00032877,30]
[392279800,1761303032323,-153.0,0.00032877,30]
[392279801,1761303032333,-153.0,0.00032877,30]
[392279802,1761303032344,-153.0,0.00032877,30]
[392279803,1761303032354,-153.0,0.00032877,30]
[392279804,1761303032363,-153.0,0.00032877,30]
[392279805,1761303032372,-153.0,0.00032877,30]
[392279806,1761303032382,-153.0,0.00032877,30]
[392279807,1761303032392,-1618.0,0.00032984,2]
[392279808,1761303032402,-173.0,0.00033,14]
[392279809,1761303032412,-1500.0,0.0003305,2]
[392279810,1761303032422,-810.0,0.00033116,2]
[392279811,1761303032432,-415.32,0.00033165,2]
[392279812,1761303032441,-1806.0,0.00033181,2]
[392279813,1761303032451,-1748.0,0.00033247,2]
[392279814,1761303032461,-1044.0,0.00033313,2]
[392279815,1761303032471,-970.0,0.00033379,2]
[392279816,1761303032481,-152.36,0.00033996,60]
[392279817,1761303032490,-152.36,0.00033996,60]
[392279818,1761303032500,-166.66,0.00034122,30]
[392279819,1761303032510,-500.0,0.000342,5]
[392279820,1761303032520,-1680.0,0.00034639,2]
[392279821,1761303032530,-517.0,0.00034708,2]
[392279822,1761303032540,-323.0,0.00034723,120]
[392279823,1761303032554,-1586.0,0.00034777,2]
[392279824,1761303032563,-323.0,0.00034814,2]
[392279825,1761303032573,-166.66,0.00034841,30]
[392279826,1761303032583,-1410.0,0.00034847,2]
[392279827,1761303032594,-3863.1202627,0.00034861,2]
[392279828,1761303032604,-155.70255643,0.00034988,7]
[392279829,1761303032614,-500.0,0.00034988,30]
[392279830,1761303032626,-500.0,0.00034988,30]
[392279831,1761303032635,-286.94056886,0.00034988,30]
[392279832,1761303032645,-323.0,0.00035241,2]
[392279833,1761303032655,-744.765,0.00035282,41]
[392279834,1761303032665,-150.0,0.00035361,2]
[392279835,1761303032675,-150.0,0.00035361,120]
[392279836,1761303032685,-151.0,0.00035431,2]
[392279837,1761303032694,-151.0,0.00035431,2]
[392279838,1761303032704,-151.0,0.00035431,2]
[392279839,1761303032714,-151.0,0.00035431,2]
[392279840,1761303032724,-151.0,0.00035431,2]
[392279841,1761303032734,-151.0,0.00035431,2]
[392279842,1761303032744,-151.0,0.00035431,2]
[392279843,1761303032753,-151.0,0.00035431,2]
[392279844,1761303032764,-151.0,0.00035431,2]
[392279845,1761303032773,-151.0,0.00035431,2]
[392279846,1761303032783,-151.0,0.00035431,2]
[392279847,1761303032792,-151.0,0.00035431,2]
[392279848,1761303032802,-151.0,0.00035431,2]
[392279849,1761303032811,-151.0,0.00035431,2]
[392279850,1761303032821,-151.0,0.00035431,2]
[392279851,1761303032831,-151.0,0.00035431,2]
[392279852,1761303032841,-151.0,0.00035431,2]
[392279853,1761303032851,-151.0,0.00035431,2]
[392279854,1761303032860,-151.0,0.00035431,2]
[392279855,1761303032870,-12787.72856574,0.00035452,2]
[392279856,1761303032880,-513.6123568,0.00035482,7]
[392279857,1761303032890,-218.99467523,0.00035482,7]
[392279858,1761303032900,-10694.09,0.00035483,2]
[392279859,1761303032909,-380.0,0.00035524,120]
[392279860,1761303032919,-300.0,0.0003553,7]
[392279861,1761303032928,-166.66,0.00035559,30]
[392279862,1761303032941,-323.0,0.00035631,2]
[392279863,1761303032951,-323.0,0.00035649,120]
[392279864,1761303032960,-158.76,0.00035669,2]
[392279865,1761303032970,-1704.47,0.00035691,2]
[392279866,1761303032980,-323.0,0.00035756,7]
[392279867,1761303032991,-6146.87,0.00035838,2]
[392279868,1761303033001,-250.0,0.00035894,2]
[392279869,1761303033010,-323.0,0.00035955,2]
[392279870,1761303033020,-221.79962117,0.00036,3]
[392279871,1761303033030,-323.0,0.00036035,2]
[392279872,1761303033040,-323.0,0.0003609,7]
[392279873,1761303033049,-323.0,0.00036195,7]
[392279874,1761303033059,-158.76,0.00036262,2]
[392279875,1761303033069,-166.66,0.00036278,30]
[392279876,1761303033078,-323.0,0.00036322,7]
[392279877,1761303033088,-10810.13,0.00036433,2]
[392279878,1761303033098,-380.0,0.00036459,7]
[392279879,1761303033108,-323.0,0.00036658,7]
[392279880,1761303033118,-323.0,0.00036668,2]
[392279881,1761303033127,-323.0,0.00036674,2]
[392279882,1761303033136,-943.750457,0.000367,22]
[392279883,1761303033146,-324.0,0.00036722,2]
[392279884,1761303033156,-158.76,0.00036855,2]
[392279885,1761303033165,-150.0,0.00036986,7]
[392279886,1761303033174,-150.0,0.00036986,7]
[392279887,1761303033184,-150.0,0.00036986,7]
[392279888,1761303033193,-150.0,0.00036986,7]
[392279889,1761303033203,-150.0,0.00036986,7]
[392279890,1761303033213,-324.0,0.0003699,120]
[392279891,1761303033224,-166.66,0.00036996,30]
[392279892,1761303033234,-324.0,0.000371,7]
[392279893,1761303033243,-323.0,0.00037267,2]
[392279894,1761303033252,-3629.53,0.0003739,2]
[392279895,1761303033262,-279.0283,0.00037417,2]
[392279896,1761303033271,-4059.8188,0.00037417,2]
[392279897,1761303033281,-2131.7729,0.00037417,2]
[392279898,1761303033290,-6420.5953,0.00037417,2]
[392279899,1761303033300,-158.76,0.00037448,2]
[392279900,1761303033309,-162.99,0.00037457,2]
[392279901,1761303033319,-281.85,0.00037524,2]
[392279902,1761303033329,-1091.0,0.00037583,5]
[392279903,1761303033339,-166.66,0.00037714,30]
[392279904,1761303033349,-150.0,0.00037756,2]
[392279905,1761303033359,-324.0,0.00037818,2]
[392279906,1761303033368,-380.0,0.00037984,2]
[392279907,1761303033378,-323.0,0.00038012,2]
[392279908,1761303033388,-158.76,0.00038041,2]
[392279909,1761303033398,-323.0,0.00038093,120]
[392279910,1761303033408,-233.7175,0.00038126,2]
[392279911,1761303033418,-324.0,0.00038226,2]
[392279912,1761303033428,-2000.0,0.000384,2]
[392279913,1761303033438,-16577.89528146,0.00038551,2]
[392279914,1761303033452,-74816.6963711,0.00038551,2]
[392279915,1761303033463,-64738.65822166,0.00038551,2]
[392279916,1761303033476,-1254.41808677,0.00038551,2]
[392279917,1761303033487,-27242.283309,0.00038551,2]
[392279918,1761303033504,-7900.77697903,0.00038551,2]
[392279919,1761303033525,-4172.60000008,0.00038551,2]
[392279920,1761303033537,-348.553675,0.00038551,2]
[392279921,1761303033551,-506.5786996,0.00038573,5]
[392279922,1761303033561,-500.0,0.00038573,5]
[392279923,1761303033571,-500.0,0.00038573,5]
[392279924,1761303033581,-11904.51874635,0.00038591,2]
[392279925,1761303033592,-7486.20000001,0.00038591,2]
[392279926,1761303033604,-270.62275924,0.00038591,2]
[392279927,1761303033614,-116.81312916,0.00038608,2]
[392279928,1761303033625,-331.17784654,0.00038608,2]
[392279929,1761303033637,-1547.51892841,0.00038608,2]
[392279930,1761303033648,-2409.24414114,0.00038608,2]
[392280277,1761303037878,-582.87543487,0.00032871,2]
[392280278,1761303037889,-139.93190724,0.00032871,2]
[392280279,1761303037933,-360.06809276,0.00032871,2]
[392280280,1761303037942,-500.0,0.00032871,2]
[392280281,1761303037951,-500.0,0.00032871,2]
[392280282,1761303037960,-500.0,0.00032871,2]
[392280283,1761303037969,-500.0,0.00032871,2]
[392280284,1761303037978,-500.0,0.00032871,2]
[392280285,1761303037988,-500.0,0.00032871,2]
[392280286,1761303037997,-500.0,0.00032871,2]
[392280287,1761303038007,-500.0,0.00032871,2]
[392280288,1761303038017,-500.0,0.00032871,2]
[392280289,1761303038026,-500.0,0.00032871,2]
[392280290,1761303038036,-500.0,0.00032871,2]
[392280291,1761303038047,-515.583,0.00032871,2]
[392280292,1761303038057,-500.0,0.00032871,2]
[392280293,1761303038067,-500.0,0.00032871,2]
[392280294,1761303038077,-500.0,0.00032871,2]
[392280295,1761303038087,-500.0,0.00032871,2]
[392280296,1761303038096,-500.0,0.00032871,2]
[392280297,1761303038106,-500.0,0.00032871,2]
[392280298,1761303038117,-740.21549492,0.00038608,2]
[392280299,1761303038128,-282.85267683,0.00038608,2]
[392280300,1761303040105,-500.0,0.00038608,2]
[392280301,1761303040118,-1000.0,0.00038608,2]
[392280302,1761303040131,-102.40136045,0.00038608,2]
[392280303,1761303040141,-158.76,0.00038634,2]
[392280304,1761303040152,-2685.93039576,0.00038708,2]
[392280305,1761303040211,-31308.73960424,0.00038708,2]
[392280306,1761303040220,-809.70130253,0.00038708,2]
[392280307,1761303040230,-500.0,0.00038856,30]
[392280308,1761303040240,-500.0,0.00038868,30]
[392280309,1761303040252,-7030.22357742,0.00038995,2]
[392280310,1761303040263,-547.46,0.00039041,2]
[392280311,1761303040272,-547.46,0.00039041,2]
[392280312,1761303040282,-547.6,0.00039041,2]
[392280313,1761303040293,-500.0,0.000391,30]
[392280314,1761303040303,-202.80124093,0.00039121,5]
[392280315,1761303040313,-1000.0,0.00039186,2]
[392280316,1761303040323,-2500.0,0.00039186,2]
[392280317,1761303040332,-158.76,0.00039227,2]
[392280318,1761303040341,-810.58879112,0.00039227,2]
[392280319,1761303040350,-300.0,0.00039271,2]
[392280320,1761303040359,-500.0,0.00039278,30]
[392280321,1761303040368,-29114.377814,0.00039286,2]
[392280322,1761303040377,-27106.7806405,0.00039286,2]
[392280323,1761303040386,-7030.22357742,0.00039382,2]
[392280324,1761303040395,-204.74888,0.000394,30]
[392280325,1761303040403,-763.01403,0.000394,20]
[392280326,1761303040412,-316.8,0.00039451,14]
[392280327,1761303040422,-162.99,0.00039538,2]
[392280328,1761303040431,-1091.0,0.00039561,5]
[392280329,1761303040440,-500.0,0.00039562,2]
[392280330,1761303040449,-500.0,0.00039651,30]
[392280332,1761303040458,-415.32,0.00039654,2]
[392280333,1761303040467,-500.0,0.00039704,30]
[392280334,1761303040476,-810.58879112,0.00039718,2]
[392280335,1761303040485,-166.66,0.00039752,2]
[392280336,1761303040495,-500.0,0.00039759,30]
[392280337,1761303040504,-7030.22357742,0.00039769,2]
[392280338,1761303040514,-158.76,0.0003982,2]
[392280339,1761303040523,-557.22795263,0.00039834,30]
[392280340,1761303040532,-185.73,0.00039863,2]
[392280341,1761303040542,-547.6,0.00039863,2]
[392280342,1761303040554,-168.52,0.00039863,2]
[392280343,1761303040563,-168.47,0.00039863,2]
[392280344,1761303040572,-151.75176207,0.00039872,30]
[392280345,1761303040581,-810.58879112,0.00039875,2]
[392280346,1761303040592,-585.50912326,0.00039909,2]
[392280347,1761303040601,-1000.0,0.0003991,120]
[392280348,1761303040610,-500.0,0.00039978,7]
[392280349,1761303040621,-150.0,0.00039978,2]
[392280350,1761303040630,-150.0,0.00039978,30]
[392280351,1761303040641,-150.0,0.00039978,2]
[392280352,1761303040651,-8020.53606386,0.00039979,2]
[392280353,1761303040661,-10000.0,0.0004,120]
[392280354,1761303040672,-7000.0,0.0004,2]
[392280355,1761303040683,-500.0,0.00040009,30]
[392280356,1761303040694,-500.0,0.00040009,2]
[392280357,1761303040704,-16620.52559476,0.0004001,2]
[392280358,1761303040714,-151.97,0.00040017,2]
[392280359,1761303040724,-200.0,0.00040033,2]
[392280360,1761303040733,-150.0,0.00040033,30]
[392280361,1761303040743,-200.0,0.00040033,2]
[392280362,1761303040752,-1425.0,0.00040053,2]
[392280363,1761303040763,-150.0,0.00040088,30]
[392280364,1761303040773,-176.3,0.0004011,2]
[392280365,1761303040783,-150.0,0.00040142,30]
[392280366,1761303040793,-18597.1110502,0.00040144,3]
[392280367,1761303040803,-810.58879112,0.00040152,2]
[392280368,1761303040813,-7030.22357742,0.00040156,15]
[392280369,1761303040823,-561.97521657,0.00040188,120]
[392280370,1761303040831,-236.0,0.00040197,30]
[392280371,1761303040840,-223.2466072,0.00040245,15]
[392280372,1761303040849,-150.0,0.00040282,2]
[392280373,1761303040858,-677.99360628,0.00040288,12]
[392280374,1761303040868,-475.59,0.00040291,2]
[392280375,1761303040877,-475.59,0.00040291,2]
[392280376,1761303040886,-475.59,0.00040291,2]
[392280377,1761303040895,-475.59,0.00040291,2]
[392280378,1761303040904,-950.92,0.00040291,2]
[392280379,1761303040913,-696.48,0.00040291,2]
[392280380,1761303040922,-696.48,0.00040291,2]
[392280381,1761303040931,-696.48,0.00040291,2]
[392280382,1761303040940,-696.48,0.00040291,2]
[392280383,1761303040949,-696.48,0.00040291,2]
[392280384,1761303040957,-1392.54,0.00040291,2]
[392280385,1761303040966,-18597.1110502,0.00040303,3]
[392280386,1761303040975,-33170.7581,0.00040313,2]
[392280387,1761303040985,-1000.0,0.00040313,2]
[392280388,1761303040994,-18597.1110502,0.00040335,3]
[392280389,1761303041003,-3413.0,0.00040345,2]
[392280390,1761303041012,-572.0,0.00040345,2]
[392280391,1761303041021,-2053.0,0.00040345,2]
[392280392,1761303041031,-819.0,0.00040345,2]
[392280393,1761303041040,-606.0,0.00040345,2]
[392280394,1761303041049,-1591.0,0.00040345,2]
[392280395,1761303041058,-1312.0,0.00040345,2]
[392280396,1761303041067,-818.0,0.00040345,2]
[392280397,1761303041076,-1269.0,0.00040345,2]
[392280398,1761303041086,-6539.0,0.00040345,2]
[392280399,1761303041095,-6456.0,0.00040345,2]
[392280400,1761303041105,-3487.0,0.00040345,2]
[392280401,1761303041113,-8639.88923207,0.0004036,6]
[392280402,1761303041122,-8139.64917345,0.00040363,6]
[392280403,1761303041131,-485366.40245753,0.00040371,6]
[392280404,1761303041140,-18597.1110502,0.00040374,3]
[392280405,1761303041149,-485366.40245753,0.00040376,6]
[392280406,1761303041158,-8139.64917345,0.00040378,6]
[392280407,1761303041167,-3822.21058266,0.00040379,6]
[392280408,1761303041176,-17566.51098076,0.00040379,6]
[392280409,1761303041185,-4107.46554538,0.00040382,6]
[392280410,1761303041195,-86034.04778619,0.00040383,6]
[392280411,1761303041204,-8639.88923207,0.00040383,6]
[392280412,1761303041213,-17566.51098076,0.00040383,6]
[392280413,1761303041223,-3822.21058266,0.00040385,6]
[392280414,1761303041231,-4107.46554538,0.00040387,6]
[392280415,1761303041240,-150.0,0.00040388,30]
[392280416,1761303041250,-86034.04778619,0.00040393,6]
[392280417,1761303041259,-18597.1110502,0.00040394,3]
[392280418,1761303041268,-37194.2221004,0.00040394,3]
[392280419,1761303041277,-5000.0,0.000404,120]
[392280420,1761303041286,-800.0,0.000404,30]
[392280421,1761303041295,-500.0,0.00040403,2]
[392280422,1761303041304,-500.0,0.00040403,7]
[392280423,1761303041314,-292.42,0.00040404,30]
[392280424,1761303041323,-322.61070001,0.00040404,30]
[392280425,1761303041333,-151.0,0.00040404,30]
[392280426,1761303041342,-520.0,0.00040404,30]
[392280427,1761303041351,-500.0,0.00040404,30]
[392280428,1761303041360,-209.40437684,0.00040404,30]
[392280429,1761303041369,-151.0,0.00040404,30]
[392280430,1761303041378,-414.0,0.00040404,30]
[392280431,1761303041387,-250.0,0.00040404,30]
[392280432,1761303041397,-250.0,0.00040404,30]
[392280433,1761303041406,-500.0,0.00040404,30]
[392280434,1761303041415,-201.12765535,0.00040404,30]
[392280435,1761303041424,-500.0,0.00040404,30]
[392280436,1761303041433,-151.0,0.00040404,30]
[392280437,1761303041442,-160.12855638,0.00040404,30]
[392280438,1761303041452,-250.0,0.00040404,30]
[392280439,1761303041461,-250.0,0.00040404,30]
[392280440,1761303041475,-500.0,0.00040404,30]
[392280441,1761303041484,-500.0,0.00040404,30]
[392280442,1761303041493,-151.0,0.00040404,30]
[392280443,1761303041503,-250.0,0.00040404,30]
[392280444,1761303041512,-500.0,0.00040404,30]
[392280445,1761303041521,-250.0,0.00040404,30]
[392280446,1761303041531,-500.0,0.00040404,30]
[392280447,1761303041540,-151.0,0.00040404,30]
[392280448,1761303041554,-250.0,0.00040404,30]
[392280449,1761303041563,-500.0,0.00040404,30]
[392280450,1761303041572,-250.0,0.00040404,30]
[392280451,1761303041582,-500.0,0.00040404,30]
[392280452,1761303041591,-151.0,0.00040404,30]
[392280453,1761303041600,-250.0,0.00040404,30]
[392280454,1761303041609,-500.0,0.00040404,30]
[392280455,1761303041618,-250.0,0.00040404,30]
[392280456,1761303041627,-500.0,0.00040404,30]
[392280457,1761303041636,-500.0,0.00040404,30]
[392280458,1761303041648,-151.0,0.00040404,30]
[392280459,1761303041657,-250.0,0.00040404,30]
[392280460,1761303041669,-250.0,0.00040404,30]
[392280461,1761303041679,-250.0,0.00040404,30]
[392280462,1761303041690,-500.0,0.00040404,30]
[392280463,1761303041700,-500.0,0.00040404,30]
[392280464,1761303041710,-250.0,0.00040404,30]
[392280465,1761303041720,-500.0,0.00040404,30]
[392280466,1761303041731,-151.0,0.00040404,30]
[392280467,1761303041740,-250.0,0.00040404,30]
[392280468,1761303041749,-250.0,0.00040404,30]
[392280469,1761303041758,-500.0,0.00040404,30]
[392280470,1761303041767,-500.0,0.00040404,30]
[392280471,1761303041777,-221.33888792,0.00040404,30]
[392280472,1761303041786,-500.0,0.00040404,30]
[392280473,1761303041795,-250.0,0.00040404,30]
[392280474,1761303041804,-151.0,0.00040404,30]
[392280475,1761303041812,-250.0,0.00040404,30]
[392280476,1761303041821,-250.0,0.00040404,30]
[392280477,1761303041831,-500.0,0.00040404,30]
[392280478,1761303041840,-500.0,0.00040404,30]
[392280479,1761303041849,-250.0,0.00040404,30]
[392280480,1761303041859,-151.0,0.00040404,30]
[392280481,1761303041868,-500.0,0.00040404,30]
[392280482,1761303041877,-250.0,0.00040404,30]
[392280483,1761303041886,-250.0,0.00040404,30]
[392280484,1761303041895,-500.0,0.00040404,30]
[392280485,1761303041904,-500.0,0.00040404,30]
[392280486,1761303041914,-250.0,0.00040404,30]
[392280487,1761303041923,-151.0,0.00040404,30]
[392280488,1761303041932,-500.0,0.00040404,30]
[392280489,1761303042155,-250.0,0.00040404,30]
[392280490,1761303042165,-500.0,0.00040404,30]
[392280491,1761303042175,-250.0,0.00040404,30]
[392280492,1761303042184,-500.0,0.00040404,30]
[392280493,1761303042193,-250.0,0.00040404,30]
[392280494,1761303042202,-154.16430345,0.00040404,30]
[392280495,1761303042211,-500.0,0.00040404,30]
[392280496,1761303042221,-500.0,0.00040404,30]
[392280497,1761303042230,-250.0,0.00040404,30]
[392280498,1761303042239,-600.0,0.00040404,30]
[392280499,1761303042248,-500.0,0.00040404,30]
[392280500,1761303042258,-250.0,0.00040404,30]
[392280501,1761303042267,-250.0,0.00040404,30]
[392280502,1761303042276,-500.0,0.00040404,30]
[392280503,1761303042286,-500.0,0.00040404,30]
[392280504,1761303042294,-500.0,0.00040404,30]
[392280505,1761303042303,-286.5032696,0.00040404,30]
[392280506,1761303042312,-250.0,0.00040404,30]
[392280507,1761303042321,-500.0,0.00040404,30]
[392280508,1761303042331,-250.0,0.00040404,30]
[392280509,1761303042341,-500.0,0.00040404,30]
[392280510,1761303042351,-500.0,0.00040404,30]
[392280511,1761303042360,-500.0,0.00040404,30]
[392280512,1761303042369,-250.0,0.00040404,30]
[392280513,1761303042378,-500.0,0.00040404,30]
[392280514,1761303042388,-250.0,0.00040404,30]
[392280515,1761303042398,-500.0,0.00040404,30]
[392280516,1761303042407,-500.0,0.00040404,30]
[392280517,1761303042417,-500.0,0.00040404,30]
[392280518,1761303042427,-250.0,0.00040404,30]
[392280519,1761303042436,-250.0,0.00040404,30]
[392280520,1761303042446,-500.0,0.00040404,30]
[392280521,1761303042455,-500.0,0.00040404,30]
[392280522,1761303042464,-250.0,0.00040404,30]
[392280523,1761303042474,-250.0,0.00040404,30]
[392280524,1761303042483,-500.0,0.00040404,30]
[392280525,1761303042492,-500.0,0.00040404,30]
[392280526,1761303042502,-250.0,0.00040404,30]
[392280527,1761303042511,-500.0,0.00040404,30]
[392280528,1761303042521,-250.0,0.00040404,30]
[392280529,1761303042531,-250.0,0.00040404,30]
[392280530,1761303042540,-500.0,0.00040404,30]
[392280531,1761303042553,-500.0,0.00040404,30]
[392280532,1761303042563,-250.0,0.00040404,30]
[392280533,1761303042572,-250.0,0.00040404,30]
[392280534,1761303042582,-500.0,0.00040404,30]
[392280535,1761303042593,-250.0,0.00040404,30]
[392280536,1761303042604,-500.0,0.00040404,30]
[392280537,1761303042614,-500.0,0.00040404,30]
[392280538,1761303042626,-250.0,0.00040404,30]
[392280539,1761303042636,-500.0,0.00040404,30]
[392280540,1761303042645,-250.0,0.00040404,30]
[392280541,1761303042654,-250.0,0.00040404,30]
[392280542,1761303042663,-500.0,0.00040404,30]
[392280543,1761303042672,-500.0,0.00040404,30]
[392280544,1761303042682,-250.0,0.00040404,30]
[392280545,1761303042691,-250.0,0.00040404,30]
[392280546,1761303042700,-500.0,0.00040404,30]
[392280547,1761303042710,-500.0,0.00040404,30]
[392280548,1761303042719,-250.0,0.00040404,30]
[392280549,1761303042728,-250.0,0.00040404,30]
[392280551,1761303042738,-250.0,0.00040404,30]
[392280552,1761303042747,-500.0,0.00040404,30]
[392280553,1761303042756,-250.0,0.00040404,30]
[392280554,1761303042765,-250.0,0.00040404,30]
[392280555,1761303042775,-208.75050563,0.00040404,30]
[392280556,1761303042784,-200.0,0.00040404,30]
[392280557,1761303042793,-250.0,0.00040404,30]
[392280558,1761303042802,-250.0,0.00040404,30]
[392280559,1761303042812,-250.0,0.00040404,30]
[392280561,1761303042821,-250.0,0.00040404,30]
[392280562,1761303042831,-250.0,0.00040404,30]
[392280563,1761303042841,-250.0,0.00040404,30]
[392280564,1761303042850,-500.0,0.00040404,30]
[392280565,1761303042859,-250.0,0.00040404,30]
[392280566,1761303042870,-250.0,0.00040404,30]
[392280567,1761303042880,-250.0,0.00040404,30]
[392280568,1761303042890,-287.61899177,0.00040404,30]
[392280569,1761303042899,-250.0,0.00040404,30]
[392280570,1761303042909,-250.0,0.00040404,30]
[392280571,1761303042919,-250.0,0.00040404,30]
[392280572,1761303042928,-160.0,0.00040404,30]
[392280573,1761303042939,-250.0,0.00040404,30]
[392280574,1761303042948,-500.0,0.00040404,30]
[392280575,1761303042958,-250.0,0.00040404,30]
[392280576,1761303042967,-250.0,0.00040404,30]
[392280577,1761303042976,-250.0,0.00040404,30]
[392280578,1761303042985,-151.0,0.00040404,30]
[392280579,1761303042994,-200.0,0.00040404,30]
[392280580,1761303043005,-250.0,0.00040404,30]
[392280581,1761303043014,-250.0,0.00040404,30]
[392280582,1761303043024,-200.0,0.00040404,30]
[392280583,1761303043034,-151.0,0.00040404,30]
[392280584,1761303043045,-500.0,0.00040404,30]
[392280585,1761303043054,-250.0,0.00040404,30]
[392280586,1761303043065,-250.0,0.00040404,30]
[392280587,1761303043075,-151.0,0.00040404,30]
[392280588,1761303043085,-500.0,0.00040404,30]
[392280589,1761303043095,-250.0,0.00040404,30]
[392280590,1761303043104,-250.0,0.00040404,30]
[392280591,1761303043114,-151.0,0.00040404,30]
[392280592,1761303043124,-500.0,0.00040404,30]
[392280593,1761303043133,-250.0,0.00040404,30]
[392280594,1761303043142,-151.0,0.00040404,30]
[392280595,1761303043151,-500.0,0.00040404,30]
[392280596,1761303043161,-250.0,0.00040404,30]
[392280597,1761303043170,-151.0,0.00040404,30]
[392280598,1761303043179,-200.0,0.00040404,30]
[392280599,1761303043188,-500.0,0.00040404,30]
[392280600,1761303043197,-151.0,0.00040404,30]
[392280601,1761303043207,-500.0,0.00040404,30]
[392280602,1761303043216,-151.0,0.00040404,30]
[392280603,1761303043224,-500.0,0.00040404,30]
[392280604,1761303043234,-256.32677684,0.00040404,30]
[392280605,1761303043243,-151.0,0.00040404,30]
[392280606,1761303043252,-500.0,0.00040404,30]
[392280607,1761303043262,-500.0,0.00040404,30]
[392280608,1761303043271,-152.81341201,0.00040404,30]
[392280609,1761303043281,-500.0,0.00040404,30]
[392280610,1761303043290,-151.0,0.00040404,30]
[392280611,1761303043299,-158.76,0.00040413,2]
[392280612,1761303043308,-200.0,0.00040413,7]
[392280613,1761303043318,-1700.70628813,0.00040512,2]
[392280614,1761303044494,-1.58682293,0.00039041,2]
[392280615,1761303046210,-947.87,0.00039041,2]
[392280625,1761303202364,500.0,0.00024932,2]
[392280640,1761303354756,677.39,0.00018299,2]
[392280641,1761303354960,677.39,0.00019262,2]
[392280642,1761303355178,677.39,0.00020225,2]
[392280643,1761303355382,677.39,0.00021188,2]
[392280644,1761303355586,677.39,0.00022151,2]
[392280645,1761303355799,677.39,0.00023114,2]
[392280646,1761303356030,677.39,0.00024077,2]
[392280647,1761303356429,677.39,0.0002504,2]
[392280648,1761303356657,677.39,0.00026003,2]
[392280649,1761303356877,677.39,0.00026966,2]
[392280694,1761303687192,-677.39,0.0002793,2]
[392280695,1761303687227,-150.0,0.0002793,2]
[392280696,1761303687254,-677.39,0.00028893,2]
[392280697,1761303687280,-677.39,0.00029856,2]
[392280698,1761303687306,-195.0,0.00030722,120]
[392280699,1761303687332,-250.0,0.00030722,2]
[392280700,1761303687358,-745.66,0.00030722,120]
[392280709,1761303802067,500.0,0.00024932,2]